[Event "Titled Tuesday Blitz October 04 Early 2022"]
[White "Erdogdu, Mert"]
[Black "Safarli, Eltaj"]
[WhiteFideId "6301495"]
[BlackFideId "13402129"]
[WhiteElo "2413"]
[BlackElo "2634"]
[Result "0-1"]
[Round "04"]
[TimeControl "180+1"]
[Date "2022.10.04"]
[WhiteClock "0:00:12"]
[BlackClock "0:00:16"]

1. e4 {[%clk 0:03:00]}  c5 {[%clk 0:02:59]} 2. Nf3 {[%clk 0:03:00]}  Nc6 {[%clk 0:02:59]} 3. d4 {[%clk 0:03:00]}  cxd4 {[%clk 0:03:00]} 4. Nxd4 {[%clk 0:03:01]}  Nf6 {[%clk 0:03:00]} 5. Nc3 {[%clk 0:03:01]}  e6 {[%clk 0:03:01]} 6. Ndb5 {[%clk 0:03:01]}  Bc5 {[%clk 0:03:00]} 7. Bf4 {[%clk 0:03:00]}  O-O {[%clk 0:03:00]} 8. Bc7 {[%clk 0:03:01]}  Qe7 {[%clk 0:03:01]} 9. Bd6 {[%clk 0:03:01]}  Bxd6 {[%clk 0:03:01]} 10. Qxd6 {[%clk 0:03:02]}  Qd8 {[%clk 0:03:02]} 11. Nc7 {[%clk 0:03:02]}  Rb8 {[%clk 0:03:00]} 12. Be2 {[%clk 0:03:03]}  b5 {[%clk 0:03:00]} 13. e5 {[%clk 0:03:03]}  Ne8 {[%clk 0:02:47]} 14. Nxe8 {[%clk 0:02:58]}  Rxe8 {[%clk 0:02:48]} 15. f4 {[%clk 0:02:52]}  b4 {[%clk 0:02:28]} 16. Ne4 {[%clk 0:02:51]}  Bb7 {[%clk 0:02:17]} 17. Nc5 {[%clk 0:02:46]}  Ne7 {[%clk 0:02:16]} 18. Nxb7 {[%clk 0:02:39]}  Rxb7 {[%clk 0:02:17]} 19. O-O-O {[%clk 0:02:38]}  Nf5 {[%clk 0:01:54]} 20. Qd3 {[%clk 0:02:29]}  Qa5 {[%clk 0:01:52]} 21. Kb1 {[%clk 0:02:27]}  Rc7 {[%clk 0:01:44]} 22. g4 {[%clk 0:02:19]}  Ne7 {[%clk 0:01:45]} 23. Bf3 {[%clk 0:02:14]}  Rec8 {[%clk 0:01:45]} 24. Rd2 {[%clk 0:02:14]}  Ng6 {[%clk 0:01:37]} 25. Qe3 {[%clk 0:02:08]}  Qc5 {[%clk 0:01:37]} 26. Qxc5 {[%clk 0:01:59]}  Rxc5 {[%clk 0:01:38]} 27. Rxd7 {[%clk 0:01:59]}  Nxf4 {[%clk 0:01:37]} 28. Rxa7 {[%clk 0:01:55]}  Rxc2 {[%clk 0:01:29]} 29. Bb7 {[%clk 0:01:40]}  R2c7 {[%clk 0:01:20]} 30. Bxc8 {[%clk 0:01:24]}  Rxa7 {[%clk 0:01:21]} 31. Rd1 {[%clk 0:01:24]}  g5 {[%clk 0:01:20]} 32. Rd4 {[%clk 0:01:19]}  Nd5 {[%clk 0:01:13]} 33. Rc4 {[%clk 0:01:15]}  Kf8 {[%clk 0:01:07]} 34. Rc6 {[%clk 0:01:13]}  Ne7 {[%clk 0:01:03]} 35. Rc4 {[%clk 0:01:08]}  Ke8 {[%clk 0:01:01]} 36. Bxe6 {[%clk 0:00:52]}  fxe6 {[%clk 0:00:54]} 37. Rxb4 {[%clk 0:00:52]}  Nc6 {[%clk 0:00:49]} 38. Rb6 {[%clk 0:00:42]}  Kd7 {[%clk 0:00:49]} 39. h3 {[%clk 0:00:41]}  Nxe5 {[%clk 0:00:48]} 40. b3 {[%clk 0:00:40]}  Nc6 {[%clk 0:00:45]} 41. a4 {[%clk 0:00:39]}  Kd6 {[%clk 0:00:42]} 42. Kb2 {[%clk 0:00:39]}  e5 {[%clk 0:00:37]} 43. Kc3 {[%clk 0:00:37]}  e4 {[%clk 0:00:33]} 44. Kd2 {[%clk 0:00:35]}  Kc5 {[%clk 0:00:31]} 45. Rb5+ {[%clk 0:00:34]}  Kd4 {[%clk 0:00:31]} 46. Rxg5 {[%clk 0:00:34]}  Ne5 {[%clk 0:00:31]} 47. Rg8 {[%clk 0:00:30]}  e3+ {[%clk 0:00:23]} 48. Ke2 {[%clk 0:00:27]}  Rc7 {[%clk 0:00:23]} 49. Rd8+ {[%clk 0:00:20]}  Ke4 {[%clk 0:00:24]} 50. a5 {[%clk 0:00:16]}  Rc2+ {[%clk 0:00:23]} 51. Kd1 {[%clk 0:00:16]}  Ra2 {[%clk 0:00:23]} 52. Re8 {[%clk 0:00:14]}  e2+ {[%clk 0:00:16]} 53. Ke1 {[%clk 0:00:14]}  Kf4 {[%clk 0:00:16]} 54. Rf8+ {[%clk 0:00:12]}  Ke3 {[%clk 0:00:16]} 0-1


[Site "https://www.chess.com"]

[Event "Titled Tuesday Blitz October 04 Early 2022"]
[White "Harvey, Marcus R"]
[Black "Wirig, Anthony"]
[WhiteFideId "400092"]
[BlackFideId "615013"]
[WhiteElo "2457"]
[BlackElo "2474"]
[Result "0-1"]
[Round "04"]
[TimeControl "180+1"]
[Date "2022.10.04"]
[WhiteClock "0:00:09"]
[BlackClock "0:00:06"]

1. e4 {[%clk 0:03:00]}  c5 {[%clk 0:02:59]} 2. Nf3 {[%clk 0:03:00]}  e6 {[%clk 0:03:00]} 3. d4 {[%clk 0:03:00]}  cxd4 {[%clk 0:03:01]} 4. Nxd4 {[%clk 0:03:00]}  Nf6 {[%clk 0:03:01]} 5. Nc3 {[%clk 0:03:00]}  Nc6 {[%clk 0:03:02]} 6. Be2 {[%clk 0:03:00]}  d5 {[%clk 0:02:44]} 7. exd5 {[%clk 0:02:57]}  exd5 {[%clk 0:02:43]} 8. O-O {[%clk 0:02:55]}  Be7 {[%clk 0:02:41]} 9. Bf4 {[%clk 0:02:52]}  O-O {[%clk 0:02:38]} 10. Bf3 {[%clk 0:02:53]}  a6 {[%clk 0:02:27]} 11. Re1 {[%clk 0:02:46]}  h6 {[%clk 0:02:20]} 12. Nxc6 {[%clk 0:02:31]}  bxc6 {[%clk 0:02:21]} 13. Na4 {[%clk 0:02:31]}  Be6 {[%clk 0:02:05]} 14. Qd4 {[%clk 0:02:29]}  Nd7 {[%clk 0:01:48]} 15. Rad1 {[%clk 0:02:22]}  Bf6 {[%clk 0:01:41]} 16. Qd3 {[%clk 0:02:17]}  Qa5 {[%clk 0:01:19]} 17. b3 {[%clk 0:02:16]}  Qb5 {[%clk 0:01:16]} 18. Qd2 {[%clk 0:02:06]}  Rfe8 {[%clk 0:01:09]} 19. h3 {[%clk 0:01:51]}  a5 {[%clk 0:01:08]} 20. Be2 {[%clk 0:01:13]}  Qb7 {[%clk 0:01:02]} 21. Bd3 {[%clk 0:01:11]}  c5 {[%clk 0:00:47]} 22. c4 {[%clk 0:01:11]}  Bd4 {[%clk 0:00:40]} 23. Bxh6 {[%clk 0:00:45]}  gxh6 {[%clk 0:00:39]} 24. Qxh6 {[%clk 0:00:45]}  Bg7 {[%clk 0:00:39]} 25. Qg5 {[%clk 0:00:33]}  Kf8 {[%clk 0:00:29]} 26. Re3 {[%clk 0:00:31]}  f6 {[%clk 0:00:25]} 27. Qh5 {[%clk 0:00:27]}  Bf7 {[%clk 0:00:24]} 28. Qe2 {[%clk 0:00:14]}  Rxe3 {[%clk 0:00:23]} 29. Qxe3 {[%clk 0:00:15]}  d4 {[%clk 0:00:23]} 30. Qf4 {[%clk 0:00:13]}  Re8 {[%clk 0:00:21]} 31. Qd6+ {[%clk 0:00:07]}  Kg8 {[%clk 0:00:21]} 32. Bf5 {[%clk 0:00:07]}  Ne5 {[%clk 0:00:17]} 33. Nxc5 {[%clk 0:00:07]}  Qe7 {[%clk 0:00:18]} 34. Qxe7 {[%clk 0:00:05]}  Rxe7 {[%clk 0:00:19]} 35. Rxd4 {[%clk 0:00:06]}  Kf8 {[%clk 0:00:19]} 36. Rd8+ {[%clk 0:00:05]}  Re8 {[%clk 0:00:18]} 37. Rd6 {[%clk 0:00:05]}  Kg8 {[%clk 0:00:17]} 38. f4 {[%clk 0:00:04]}  Bf8 {[%clk 0:00:14]} 39. fxe5 {[%clk 0:00:04]}  Rxe5 {[%clk 0:00:14]} 40. Rxf6 {[%clk 0:00:02]}  Bxc5+ {[%clk 0:00:14]} 41. Kf1 {[%clk 0:00:02]}  Be7 {[%clk 0:00:15]} 42. Bh7+ {[%clk 0:00:02]}  Kg7 {[%clk 0:00:14]} 43. Rf2 {[%clk 0:00:02]}  Bh5 {[%clk 0:00:13]} 44. Rf5 {[%clk 0:00:02]}  Rxf5+ {[%clk 0:00:11]} 45. Bxf5 {[%clk 0:00:03]}  Kf6 {[%clk 0:00:12]} 46. Bd7 {[%clk 0:00:03]}  Bg6 {[%clk 0:00:12]} 47. Ke2 {[%clk 0:00:03]}  Bb1 {[%clk 0:00:12]} 48. a3 {[%clk 0:00:04]}  Bxa3 {[%clk 0:00:11]} 49. Ba4 {[%clk 0:00:04]}  Ke5 {[%clk 0:00:11]} 50. Kf3 {[%clk 0:00:05]}  Be4+ {[%clk 0:00:11]} 51. Ke3 {[%clk 0:00:05]}  Bxg2 {[%clk 0:00:11]} 52. h4 {[%clk 0:00:05]}  Be4 {[%clk 0:00:10]} 53. Kd2 {[%clk 0:00:06]}  Bb4+ {[%clk 0:00:10]} 54. Kc1 {[%clk 0:00:06]}  Kd4 {[%clk 0:00:10]} 55. Kb2 {[%clk 0:00:07]}  Bc3+ {[%clk 0:00:10]} 56. Ka3 {[%clk 0:00:07]}  Bb4+ {[%clk 0:00:10]} 57. Kb2 {[%clk 0:00:07]}  Bf3 {[%clk 0:00:11]} 58. Be8 {[%clk 0:00:07]}  Ke5 {[%clk 0:00:11]} 59. h5 {[%clk 0:00:07]}  Bd2 {[%clk 0:00:11]} 60. Bg6 {[%clk 0:00:07]}  Kd4 {[%clk 0:00:10]} 61. Be8 {[%clk 0:00:06]}  Bh6 {[%clk 0:00:10]} 62. Bg6 {[%clk 0:00:06]}  Kc5 {[%clk 0:00:11]} 63. Ka3 {[%clk 0:00:06]}  Bc1+ {[%clk 0:00:10]} 64. Ka4 {[%clk 0:00:03]}  Bd2 {[%clk 0:00:10]} 65. Ka3 {[%clk 0:00:02]}  Bc6 {[%clk 0:00:09]} 66. Kb2 {[%clk 0:00:03]}  Kb4 {[%clk 0:00:09]} 67. Kc2 {[%clk 0:00:03]}  Bh6 {[%clk 0:00:09]} 68. Kb2 {[%clk 0:00:04]}  Bf3 {[%clk 0:00:09]} 69. Be8 {[%clk 0:00:04]}  Bd1 {[%clk 0:00:10]} 70. Ba4 {[%clk 0:00:04]}  Bg7+ {[%clk 0:00:09]} 71. Ka2 {[%clk 0:00:04]}  Bxh5 {[%clk 0:00:09]} 72. Kb1 {[%clk 0:00:04]}  Bg6+ {[%clk 0:00:09]} 73. Ka2 {[%clk 0:00:05]}  Bc2 {[%clk 0:00:09]} 74. c5 {[%clk 0:00:02]}  Be4 {[%clk 0:00:07]} 75. c6 {[%clk 0:00:02]}  Be5 {[%clk 0:00:08]} 76. c7 {[%clk 0:00:02]}  Bxc7 {[%clk 0:00:08]} 77. Kb2 {[%clk 0:00:01]}  Bd5 {[%clk 0:00:08]} 78. Ka2 {[%clk 0:00:02]}  Be5 {[%clk 0:00:08]} 79. Be8 {[%clk 0:00:02]}  Bxb3+ {[%clk 0:00:08]} 80. Kb1 {[%clk 0:00:03]}  Bc4 {[%clk 0:00:08]} 81. Bd7 {[%clk 0:00:03]}  Kc3 {[%clk 0:00:08]} 82. Ba4 {[%clk 0:00:03]}  Bd3+ {[%clk 0:00:08]} 83. Ka2 {[%clk 0:00:03]}  Bd6 {[%clk 0:00:09]} 84. Bb3 {[%clk 0:00:03]}  Bb4 {[%clk 0:00:09]} 85. Ba4 {[%clk 0:00:03]}  Bc4+ {[%clk 0:00:09]} 86. Ka1 {[%clk 0:00:04]}  Bb3 {[%clk 0:00:09]} 87. Bb5 {[%clk 0:00:04]}  a4 {[%clk 0:00:09]} 88. Bxa4 {[%clk 0:00:04]}  Bxa4 {[%clk 0:00:10]} 89. Ka2 {[%clk 0:00:04]}  Bc2 {[%clk 0:00:08]} 90. Ka1 {[%clk 0:00:05]}  Bb3 {[%clk 0:00:05]} 91. Kb1 {[%clk 0:00:05]}  Ba3 {[%clk 0:00:05]} 92. Ka1 {[%clk 0:00:06]}  Bd5 {[%clk 0:00:04]} 93. Kb1 {[%clk 0:00:06]}  Bc5 {[%clk 0:00:04]} 94. Ka1 {[%clk 0:00:07]}  Kb3 {[%clk 0:00:04]} 95. Kb1 {[%clk 0:00:08]}  Be3 {[%clk 0:00:04]} 96. Ka1 {[%clk 0:00:08]}  Bf3 {[%clk 0:00:05]} 97. Kb1 {[%clk 0:00:08]}  Be4+ {[%clk 0:00:05]} 98. Ka1 {[%clk 0:00:09]}  Bd4# {[%clk 0:00:06]} 0-1


[Site "https://www.chess.com"]

[Event "Titled Tuesday Blitz October 04 Early 2022"]
[White "Jones, Gawain C B"]
[Black "Yaran, Siar"]
[WhiteFideId "409561"]
[BlackFideId "6323006"]
[WhiteElo "2657"]
[BlackElo "2191"]
[Result "1-0"]
[Round "04"]
[TimeControl "180+1"]
[Date "2022.10.04"]
[WhiteClock "0:00:05"]
[BlackClock "0:00:04"]

1. Nf3 {[%clk 0:03:00]}  Nf6 {[%clk 0:02:57]} 2. g3 {[%clk 0:03:00]}  e6 {[%clk 0:02:57]} 3. Bg2 {[%clk 0:03:00]}  d5 {[%clk 0:02:57]} 4. O-O {[%clk 0:02:59]}  Be7 {[%clk 0:02:58]} 5. c4 {[%clk 0:02:59]}  O-O {[%clk 0:02:58]} 6. b3 {[%clk 0:03:00]}  b6 {[%clk 0:02:58]} 7. Bb2 {[%clk 0:03:00]}  Bb7 {[%clk 0:02:58]} 8. cxd5 {[%clk 0:03:00]}  Nxd5 {[%clk 0:02:58]} 9. d4 {[%clk 0:03:00]}  c5 {[%clk 0:02:57]} 10. Nc3 {[%clk 0:02:59]}  Nxc3 {[%clk 0:02:55]} 11. Bxc3 {[%clk 0:03:00]}  cxd4 {[%clk 0:02:54]} 12. Qxd4 {[%clk 0:02:56]}  Qxd4 {[%clk 0:02:53]} 13. Nxd4 {[%clk 0:02:57]}  Bxg2 {[%clk 0:02:53]} 14. Kxg2 {[%clk 0:02:57]}  Rc8 {[%clk 0:02:53]} 15. Rac1 {[%clk 0:02:54]}  Nc6 {[%clk 0:02:51]} 16. Bb2 {[%clk 0:02:40]}  Nxd4 {[%clk 0:02:37]} 17. Bxd4 {[%clk 0:02:41]}  Ba3 {[%clk 0:02:31]} 18. Rxc8+ {[%clk 0:02:19]}  Rxc8 {[%clk 0:02:31]} 19. Rd1 {[%clk 0:02:19]}  Rd8 {[%clk 0:02:30]} 20. Rd3 {[%clk 0:02:16]}  f6 {[%clk 0:02:24]} 21. f4 {[%clk 0:02:16]}  Kf7 {[%clk 0:02:20]} 22. Kf3 {[%clk 0:02:13]}  Ke7 {[%clk 0:02:15]} 23. Ke4 {[%clk 0:02:10]}  Rc8 {[%clk 0:02:14]} 24. Bc3 {[%clk 0:01:47]}  Rc6 {[%clk 0:02:02]} 25. g4 {[%clk 0:01:43]}  Rd6 {[%clk 0:01:55]} 26. g5 {[%clk 0:01:28]}  Rxd3 {[%clk 0:01:54]} 27. Kxd3 {[%clk 0:01:25]}  fxg5 {[%clk 0:01:45]} 28. fxg5 {[%clk 0:01:24]}  g6 {[%clk 0:01:45]} 29. b4 {[%clk 0:01:23]}  b5 {[%clk 0:01:22]} 30. Kc2 {[%clk 0:01:19]}  Kd7 {[%clk 0:01:02]} 31. Bd2 {[%clk 0:01:14]}  a5 {[%clk 0:01:01]} 32. bxa5 {[%clk 0:01:08]}  Kc6 {[%clk 0:00:59]} 33. Kb3 {[%clk 0:00:58]}  Bd6 {[%clk 0:00:57]} 34. h3 {[%clk 0:00:58]}  Kb7 {[%clk 0:00:54]} 35. a4 {[%clk 0:00:56]}  Ka6 {[%clk 0:00:54]} 36. axb5+ {[%clk 0:00:52]}  Kxb5 {[%clk 0:00:55]} 37. Kc2 {[%clk 0:00:52]}  Kc4 {[%clk 0:00:49]} 38. Bc3 {[%clk 0:00:30]}  Bf4 {[%clk 0:00:45]} 39. a6 {[%clk 0:00:19]}  Bb8 {[%clk 0:00:32]} 40. Bd2 {[%clk 0:00:14]}  Kb5 {[%clk 0:00:30]} 41. Kd3 {[%clk 0:00:15]}  Kxa6 {[%clk 0:00:29]} 42. Ke4 {[%clk 0:00:15]}  Kb7 {[%clk 0:00:16]} 43. Bf4 {[%clk 0:00:14]}  Ba7 {[%clk 0:00:14]} 44. Ke5 {[%clk 0:00:13]}  Bb8+ {[%clk 0:00:14]} 45. Ke4 {[%clk 0:00:13]}  Ba7 {[%clk 0:00:15]} 46. Bd6 {[%clk 0:00:11]}  Kc6 {[%clk 0:00:15]} 47. Ke5 {[%clk 0:00:12]}  Kd7 {[%clk 0:00:13]} 48. Bb4 {[%clk 0:00:10]}  Be3 {[%clk 0:00:11]} 49. Kf6 {[%clk 0:00:10]}  Bd4+ {[%clk 0:00:12]} 50. Kf7 {[%clk 0:00:10]}  Be3 {[%clk 0:00:12]} 51. Kg7 {[%clk 0:00:08]}  Bxg5 {[%clk 0:00:12]} 52. Kxh7 {[%clk 0:00:08]}  Bh4 {[%clk 0:00:11]} 53. Kxg6 {[%clk 0:00:09]}  Ke8 {[%clk 0:00:11]} 54. Bc3 {[%clk 0:00:06]}  Ke7 {[%clk 0:00:11]} 55. Be5 {[%clk 0:00:05]}  Bf2 {[%clk 0:00:10]} 56. Bf4 {[%clk 0:00:05]}  Bd4 {[%clk 0:00:07]} 57. h4 {[%clk 0:00:05]}  Bh8 {[%clk 0:00:05]} 58. Bg5+ {[%clk 0:00:05]}  Kf8 {[%clk 0:00:04]} 59. Bf6 {[%clk 0:00:05]} 1-0


[Site "https://www.chess.com"]

[Event "Titled Tuesday Blitz October 04 Early 2022"]
[White "Lazavik, Denis"]
[Black "Makarian, Rudik"]
[WhiteFideId "13515110"]
[BlackFideId "44105681"]
[WhiteElo "2437"]
[BlackElo "2405"]
[Result "1-0"]
[Round "04"]
[TimeControl "180+1"]
[Date "2022.10.04"]
[WhiteClock "0:00:08"]
[BlackClock "0:00:07"]

1. d4 {[%clk 0:03:00]}  g6 {[%clk 0:02:59]} 2. c4 {[%clk 0:03:00]}  Bg7 {[%clk 0:03:00]} 3. Nf3 {[%clk 0:03:00]}  d6 {[%clk 0:02:59]} 4. g3 {[%clk 0:02:59]}  Nf6 {[%clk 0:02:51]} 5. Nc3 {[%clk 0:02:58]}  O-O {[%clk 0:02:49]} 6. Bg2 {[%clk 0:02:59]}  Nc6 {[%clk 0:02:45]} 7. d5 {[%clk 0:02:54]}  Na5 {[%clk 0:02:45]} 8. b3 {[%clk 0:02:54]}  c5 {[%clk 0:02:46]} 9. Bb2 {[%clk 0:02:48]}  a6 {[%clk 0:02:45]} 10. O-O {[%clk 0:02:48]}  Rb8 {[%clk 0:02:44]} 11. a4 {[%clk 0:02:46]}  Bd7 {[%clk 0:02:37]} 12. Ra3 {[%clk 0:02:46]}  e5 {[%clk 0:02:29]} 13. Nd2 {[%clk 0:02:26]}  h5 {[%clk 0:02:23]} 14. h3 {[%clk 0:02:22]}  Qe7 {[%clk 0:02:20]} 15. e4 {[%clk 0:02:20]}  h4 {[%clk 0:02:20]} 16. g4 {[%clk 0:02:18]}  Bh6 {[%clk 0:02:19]} 17. Nf3 {[%clk 0:02:17]}  Nh7 {[%clk 0:02:19]} 18. Bc1 {[%clk 0:02:08]}  Bxc1 {[%clk 0:02:18]} 19. Qxc1 {[%clk 0:02:09]}  g5 {[%clk 0:02:11]} 20. Qd2 {[%clk 0:02:04]}  b6 {[%clk 0:02:04]} 21. Rb1 {[%clk 0:01:52]}  Rfc8 {[%clk 0:02:03]} 22. Ne1 {[%clk 0:01:46]}  Nf8 {[%clk 0:01:55]} 23. Nc2 {[%clk 0:01:37]}  Ng6 {[%clk 0:01:54]} 24. Ne3 {[%clk 0:01:37]}  Nf4 {[%clk 0:01:54]} 25. Bf1 {[%clk 0:01:33]}  Qd8 {[%clk 0:01:34]} 26. Ne2 {[%clk 0:01:28]}  Nxe2+ {[%clk 0:01:31]} 27. Bxe2 {[%clk 0:01:28]}  Nb7 {[%clk 0:01:28]} 28. Kf1 {[%clk 0:01:03]}  f6 {[%clk 0:01:28]} 29. Ke1 {[%clk 0:00:58]}  Kg7 {[%clk 0:01:26]} 30. f3 {[%clk 0:00:57]}  Qc7 {[%clk 0:01:23]} 31. Ra2 {[%clk 0:00:53]}  Nd8 {[%clk 0:01:18]} 32. Bd1 {[%clk 0:00:46]}  Nf7 {[%clk 0:01:02]} 33. b4 {[%clk 0:00:41]}  cxb4 {[%clk 0:00:59]} 34. Qxb4 {[%clk 0:00:41]}  a5 {[%clk 0:00:44]} 35. Qd2 {[%clk 0:00:41]}  Nh8 {[%clk 0:00:42]} 36. Be2 {[%clk 0:00:36]}  Ng6 {[%clk 0:00:42]} 37. Ng2 {[%clk 0:00:36]}  Qc5 {[%clk 0:00:40]} 38. Bf1 {[%clk 0:00:29]}  Rc7 {[%clk 0:00:33]} 39. Qe3 {[%clk 0:00:27]}  Rcb7 {[%clk 0:00:23]} 40. Rab2 {[%clk 0:00:08]}  Qc7 {[%clk 0:00:16]} 41. Ra2 {[%clk 0:00:07]}  Qc5 {[%clk 0:00:16]} 42. Rab2 {[%clk 0:00:07]}  Qxe3+ {[%clk 0:00:11]} 43. Nxe3 {[%clk 0:00:07]}  Bxa4 {[%clk 0:00:11]} 44. Nf5+ {[%clk 0:00:07]}  Kf8 {[%clk 0:00:08]} 45. Nxd6 {[%clk 0:00:08]}  Ra7 {[%clk 0:00:06]} 46. c5 {[%clk 0:00:07]}  b5 {[%clk 0:00:05]} 47. Bxb5 {[%clk 0:00:06]}  Bxb5 {[%clk 0:00:05]} 48. Nxb5 {[%clk 0:00:06]}  Raa8 {[%clk 0:00:04]} 49. c6 {[%clk 0:00:05]}  Nf4 {[%clk 0:00:01]} 50. Kd2 {[%clk 0:00:05]}  Nxh3 {[%clk 0:00:01]} 51. d6 {[%clk 0:00:06]}  Nf4 {[%clk 0:00:01]} 52. c7 {[%clk 0:00:06]}  Rc8 {[%clk 0:00:01]} 53. d7 {[%clk 0:00:07]}  Ne6 {[%clk 0:00:02]} 54. dxc8=Q+ {[%clk 0:00:06]}  Rxc8 {[%clk 0:00:03]} 55. Ke3 {[%clk 0:00:07]}  Ke7 {[%clk 0:00:03]} 56. Rc2 {[%clk 0:00:07]}  h3 {[%clk 0:00:04]} 57. Na7 {[%clk 0:00:07]}  Rxc7 {[%clk 0:00:04]} 58. Rxc7+ {[%clk 0:00:07]}  Nxc7 {[%clk 0:00:05]} 59. Nc6+ {[%clk 0:00:08]}  Kd6 {[%clk 0:00:05]} 60. Nxa5 {[%clk 0:00:09]}  Ne6 {[%clk 0:00:06]} 61. Rh1 {[%clk 0:00:09]}  Nf4 {[%clk 0:00:06]} 62. Nc4+ {[%clk 0:00:09]}  Kc6 {[%clk 0:00:07]} 63. Nb2 {[%clk 0:00:10]}  Ng2+ {[%clk 0:00:06]} 64. Kf2 {[%clk 0:00:09]}  Nf4 {[%clk 0:00:07]} 65. Kg3 {[%clk 0:00:10]}  Kc5 {[%clk 0:00:07]} 66. Rxh3 {[%clk 0:00:08]}  Nxh3 {[%clk 0:00:07]} 67. Kxh3 {[%clk 0:00:09]}  Kd4 {[%clk 0:00:08]} 68. Na4 {[%clk 0:00:08]}  Kc4 {[%clk 0:00:07]} 69. Nb6+ {[%clk 0:00:08]} 1-0


[Site "https://www.chess.com"]

[Event "Titled Tuesday Blitz October 04 Early 2022"]
[White "Ohanyan, Emin"]
[Black "Paravyan, David"]
[WhiteFideId "13312022"]
[BlackFideId "4194985"]
[WhiteElo "2302"]
[BlackElo "2555"]
[Result "1-0"]
[Round "04"]
[TimeControl "180+1"]
[Date "2022.10.04"]
[WhiteClock "0:00:44"]
[BlackClock "0:00:55"]

1. e4 {[%clk 0:03:00]}  e5 {[%clk 0:02:58]} 2. Nc3 {[%clk 0:02:58]}  Nf6 {[%clk 0:02:58]} 3. Bc4 {[%clk 0:02:58]}  Nc6 {[%clk 0:02:55]} 4. d3 {[%clk 0:02:58]}  Bb4 {[%clk 0:02:56]} 5. Ne2 {[%clk 0:02:58]}  d5 {[%clk 0:02:48]} 6. exd5 {[%clk 0:02:59]}  Nxd5 {[%clk 0:02:48]} 7. O-O {[%clk 0:02:55]}  Nxc3 {[%clk 0:02:45]} 8. Nxc3 {[%clk 0:02:56]}  O-O {[%clk 0:02:44]} 9. Ne4 {[%clk 0:02:54]}  Bf5 {[%clk 0:02:42]} 10. c3 {[%clk 0:02:36]}  Be7 {[%clk 0:02:39]} 11. Qf3 {[%clk 0:02:36]}  Qd7 {[%clk 0:02:32]} 12. Qg3 {[%clk 0:02:30]}  Kh8 {[%clk 0:02:27]} 13. f4 {[%clk 0:02:17]}  Bxe4 {[%clk 0:02:18]} 14. dxe4 {[%clk 0:02:17]}  exf4 {[%clk 0:01:56]} 15. Bxf4 {[%clk 0:02:16]}  Bc5+ {[%clk 0:01:56]} 16. Kh1 {[%clk 0:02:03]}  Bb6 {[%clk 0:01:54]} 17. e5 {[%clk 0:01:54]}  Qe7 {[%clk 0:01:49]} 18. Rae1 {[%clk 0:01:51]}  Rae8 {[%clk 0:01:38]} 19. Bg5 {[%clk 0:01:51]}  Qc5 {[%clk 0:01:37]} 20. Bf6 {[%clk 0:01:01]}  Rg8 {[%clk 0:01:24]} 21. Bxf7 {[%clk 0:00:44]}  gxf6 {[%clk 0:01:25]} 22. exf6 {[%clk 0:00:44]}  Ref8 {[%clk 0:00:55]} 23. Bxg8 {[%clk 0:00:44]}  Rxg8 {[%clk 0:00:55]} 24. Re8 {[%clk 0:00:44]} 1-0


[Site "https://www.chess.com"]

[Event "Titled Tuesday Blitz October 04 Early 2022"]
[White "Sarana, Alexey"]
[Black "Krysa, Leandro"]
[WhiteFideId "24133795"]
[BlackFideId "116807"]
[WhiteElo "2689"]
[BlackElo "2486"]
[Result "1-0"]
[Round "04"]
[TimeControl "180+1"]
[Date "2022.10.04"]
[WhiteClock "0:00:30"]
[BlackClock "0:00:02"]

1. c4 {[%clk 0:02:57]}  g6 {[%clk 0:03:00]} 2. d4 {[%clk 0:02:57]}  Bg7 {[%clk 0:03:00]} 3. e4 {[%clk 0:02:57]}  d6 {[%clk 0:03:00]} 4. Nc3 {[%clk 0:02:58]}  e5 {[%clk 0:03:00]} 5. d5 {[%clk 0:02:57]}  a5 {[%clk 0:02:58]} 6. Bd3 {[%clk 0:02:55]}  Na6 {[%clk 0:02:57]} 7. Nge2 {[%clk 0:02:54]}  Nc5 {[%clk 0:02:53]} 8. Bc2 {[%clk 0:02:54]}  h5 {[%clk 0:02:49]} 9. Be3 {[%clk 0:02:53]}  Bh6 {[%clk 0:02:48]} 10. Qd2 {[%clk 0:02:53]}  Bxe3 {[%clk 0:02:45]} 11. Qxe3 {[%clk 0:02:54]}  Nf6 {[%clk 0:02:31]} 12. h3 {[%clk 0:02:51]}  h4 {[%clk 0:02:29]} 13. f4 {[%clk 0:02:42]}  Qe7 {[%clk 0:02:26]} 14. Rf1 {[%clk 0:02:38]}  exf4 {[%clk 0:02:16]} 15. Qxf4 {[%clk 0:02:36]}  Nh5 {[%clk 0:02:07]} 16. Qf2 {[%clk 0:02:34]}  O-O {[%clk 0:02:00]} 17. O-O-O {[%clk 0:02:32]}  Bd7 {[%clk 0:01:58]} 18. Kb1 {[%clk 0:02:31]}  a4 {[%clk 0:01:57]} 19. a3 {[%clk 0:02:29]}  Rae8 {[%clk 0:01:53]} 20. Nd4 {[%clk 0:02:12]}  Ng3 {[%clk 0:01:33]} 21. Rfe1 {[%clk 0:02:12]}  Qg5 {[%clk 0:01:22]} 22. Nf3 {[%clk 0:02:10]}  Qf4 {[%clk 0:01:22]} 23. e5 {[%clk 0:02:09]}  Bf5 {[%clk 0:01:03]} 24. Rd4 {[%clk 0:01:52]}  Bxc2+ {[%clk 0:00:46]} 25. Qxc2 {[%clk 0:01:53]}  Qf5 {[%clk 0:00:42]} 26. Rxh4 {[%clk 0:00:59]}  dxe5 {[%clk 0:00:41]} 27. Rg4 {[%clk 0:00:59]}  Qxc2+ {[%clk 0:00:24]} 28. Kxc2 {[%clk 0:01:00]}  e4 {[%clk 0:00:15]} 29. Ng5 {[%clk 0:00:45]}  Nd3 {[%clk 0:00:07]} 30. Rd1 {[%clk 0:00:33]}  Nf5 {[%clk 0:00:05]} 31. Ngxe4 {[%clk 0:00:29]}  Ne3+ {[%clk 0:00:02]} 32. Kxd3 {[%clk 0:00:29]}  Nxd1 {[%clk 0:00:02]} 33. Nf6+ {[%clk 0:00:28]}  Kh8 {[%clk 0:00:01]} 34. Rh4+ {[%clk 0:00:28]}  Kg7 {[%clk 0:00:01]} 35. Nxe8+ {[%clk 0:00:29]}  Rxe8 {[%clk 0:00:02]} 36. Nxd1 {[%clk 0:00:30]} 1-0


[Site "https://www.chess.com"]